Cogmind - Beta 14 @@@ ROGUE MODE // 2025.05.05 @ 20:56:00 Player: b_ Result: Destroyed by G-34 Mercenary with Small Laser Performance ------------- Evolutions (0) 0 Regions Visited (2) 400 Robots Destroyed (29) 145 Value Destroyed (762) 762 Prototype IDs (2) 40 Alien Tech Used (0) 0 Bonus (0) 0 TOTAL SCORE: 1347 Bonus ------- None Cogmind --------- Core Integrity 0/250 Matter 262/300 Energy 250/250 System Corruption 0% Temperature Cool (39) Movement Treading (160) Location -10/Mines Parts ------- > --- POWER (1) -------- Ion Engine > --- PROPULSION (2) --- Light Treads Light Treads > --- UTILITY (2) ------ Small Storage Unit Seismic Detector > --- WEAPON (2) ------- Small Laser Grenade Launcher > --- INVENTORY (8) ---- Ion Engine Improved Heat Sink Signal Interpreter Signal Interpreter Terrain Scanner ECM Suite Small Laser Datajack Peak State ------------ > --- POWER ------------ Ion Engine > --- PROPULSION ------- Wheel Wheel > --- UTILITY ---------- Huge Storage Unit Seismic Detector > --- WEAPON ----------- Medium Laser Grenade Launcher > --- INVENTORY -------- Light Ion Engine Light Treads Wheel Wheel Heat Sink Improved Heat Sink Small Storage Unit Large Battery Small Matter Pod ECM Suite Small Laser Small Laser Small Laser Particle Gun Grenade Launcher Grenade Launcher Datajack [Rating: 9] Favorites ----------- Power Ion Engine Engine Ion Engine Propulsion Wheel Treads Light Treads Wheel Wheel Utility Seismic Detector Device Seismic Detector Storage Huge Storage Unit Weapon Medium Laser Energy Gun Medium Laser Launcher Grenade Launcher Build | -11 -10 -10 ------- Run | Yrd Mat Min Slots Evolved . | . . . Power . | . . . Propulsion . | . . . Utility . | . . . Weapon . | . . . Parts Attached 29 | 6 23 . Power 5 | 1 4 . Engine 5 | 1 4 . Core . | . . . Reactor . | . . . Propulsion 8 | 2 6 . Treads 3 | . 3 . Leg . | . . . Wheel 5 | 2 3 . Hover . | . . . Flight . | . . . Utility 8 | 1 7 . Device 3 | . 3 . Storage 5 | 1 4 . Processor . | . . . Hackware . | . . . Protection . | . . . Artifact . | . . . Weapon 8 | 2 6 . Energy Gun 5 | 2 3 . Energy Cannon . | . . . Ballistic Gun . | . . . Ballistic Cannon . | . . . Launcher 3 | . 3 . Special Weapon . | . . . Impact Weapon . | . . . Slashing Weapon . | . . . Piercing Weapon . | . . . Special Melee Weapon . | . . . Unidentified Prototypes . | . . . Parts Lost 6 | . 6 . Power 1 | . 1 . Propulsion 3 | . 3 . Utility . | . . . Weapon 2 | . 2 . Highest Loss Streak 3 | . 3 . To Critical Strikes . | . . . Average Slot Usage (%) 99 | . 99 100 Engine 13 | . 13 14 Treads 5 | . 5 28 Wheel 22 | . 22 . Device 14 | . 14 14 Storage 14 | . 14 14 Energy Gun 17 | . 17 14 Launcher 10 | . 10 14 Peak Build Rating 9 | 6 9 8 Average Rating 8 | 5 8 8 On Entrance 4 | . 6 8 Naked Turns . | . . . Heaviest Build 92 | 11 92 . Greatest Support 40 | 20 40 . Greatest Overweight (x) 9 | . 9 . Average Overweight (x) 2 | . 2 . Largest Inventory Capacity 25 | 8 25 8 Average Capacity 18 | 7 19 8 Most Carried 25 | 7 25 8 Average Carried 15 | 3 15 8 Final Capacity 8 | 8 8 8 Final Carried 8 | 7 8 8 Class Distribution -------------------- 96% | Mutant 3% | Scavenger-Mutant Dominant Class ---------------- Mutant | -10/Materials Mutant | -10/Mines Resources | -11 -10 -10 ----------- Run | Yrd Mat Min Matter Collected 628 | 260 368 . Remotely . | . . . Salvage Created 851 | 105 697 49 Parts 49 | 3 43 3 Haulers Intercepted . | . . . Recyclers Shooed . | . . . Parts Field Recycled . | . . . Retrieved Matter . | . . . Parts Self-Destructed . | . . . Prevented . | . . . Kills | -11 -10 -10 ------- Run | Yrd Mat Min Combat Hostiles Destroyed 18 | . 17 1 Guns 9 | . 9 . AOE 9 | . 8 1 Classes Destroyed 6 | 2 4 . Worker 4 | . 4 . Builder 2 | . 2 . Tunneler 1 | 1 . . Recycler 1 | 1 . . Watcher 3 | . 3 . Grunt 18 | . 17 1 Best Kill Streak 3 | 2 3 1 Combat Bots Only 3 | . 3 1 Max Kills in Single Turn 2 | 1 2 1 Gunslinging . | . . . Exploded 2 | . 2 1 Melee . | . . . Uniques/NPCs Destroyed . | . . . Combat | -11 -10 -10 -------- Run | Yrd Mat Min Hostile Shots Fired 103 | . 97 6 Missed 39 | . 38 1 Damage Taken 939 | . 864 75 Core 257 | . 202 55 Absorbed by Shields . | . . . Core Remaining (%) 100 | 100 . . Volleys Fired 102 | 5 92 5 Largest 2 | 2 2 2 Hottest 90 | 90 90 70 Shots Fired 146 | 10 130 6 Gun 130 | 10 115 5 Cannon . | . . . Launcher 16 | . 15 1 Special . | . . . Kinetic . | . . . Thermal 130 | 10 115 5 Explosive 16 | . 15 1 Electromagnetic . | . . . Robot Hit Streak 11 | 2 11 4 Robot Miss Streak 4 | 1 4 1 Penetration Max . | . . . Secondary Targets 1 | . 1 . Max Gunslinging Chain 1 | . 1 . Shots Hit Robots 90 | 5 80 5 Core Hits 51 | 3 45 3 Critical Kills . | . . . Critical Parts Destroyed . | . . . Critical Strikes 5 | . 5 . Burn 5 | . 5 . Melee Attacks . | . . . Impact . | . . . Slashing . | . . . Piercing . | . . . Sneak Attacks . | . . . Combat Hostiles . | . . . Follow-up Attacks . | . . . Damage Inflicted 1936 | 62 1792 82 Guns 1016 | 62 911 43 Cannons . | . . . Explosions 898 | . 859 39 Melee . | . . . Ramming 22 | . 22 . Kinetic . | . . . Thermal 1016 | 62 911 43 Explosive 898 | . 859 39 Electromagnetic . | . . . Impact . | . . . Slashing . | . . . Piercing . | . . . Highest Corruption . | . . . Average Corruption . | . . . Corruption Purged . | . . . Corruption Blocked . | . . . Overload Shots . | . . . Overflow Damage . | . . . Projectiles . | . . . Explosions . | . . . Melee . | . . . Knockbacks . | . . . Impact . | . . . Kinetic . | . . . Secondary . | . . . Self-Inflicted Damage 126 | . 106 20 Shots 6 | . 5 1 Rammed 1 | . 1 . Targets Rammed 1 | . 1 . Kicked . | . . . Crushed . | . . . Highest Temperature 264 | 60 264 33 Average Temperature 66 | 30 70 20 Received Heat Transfer 495 | . 465 30 Siege Activations . | . . . Robots Corrupted . | . . . Combat Hostiles . | . . . Parts Fried . | . . . Impact Corruptions . | . . . Robots Melted . | . . . Combat Hostiles . | . . . Parts Melted 8 | 1 7 . Heat Transferred 3201 | 173 2928 100 Parts Sabotaged . | . . . Parts Stolen . | . . . Parts Stripped . | . . . Power Chain Reactions . | . . . Alert | -11 -10 -10 ------- Run | Yrd Mat Min Peak Influence 261 | 10 261 147 Initial 83 | . 6 83 Average 136 | 3 143 145 Maximum Alert Level 1 | . 1 . Low Security (%) 73 | 100 72 100 Level 1 26 | . 27 . Level 2 . | . . . Level 3 . | . . . Level 4 . | . . . Level 5 . | . . . High Security . | . . . Max Security . | . . . Squads Dispatched 5 | . 5 . Investigation 4 | . 4 . Extermination . | . . . Reinforcement 1 | . 1 . Assault . | . . . Garrison . | . . . Intercept . | . . . Searches Triggered . | . . . Construction Impeded . | . . . Haulers Reinforced . | . . . Active Scanning Responses . | . . . Cargo Convoy Interrupts . | . . . Stealth | -11 -10 -10 --------- Run | Yrd Mat Min Distress Signals 2 | . 2 . Communications Jammed . | . . . Distress Signals . | . . . Times Spotted 29 | . 28 1 Peak Tracking Total 4 | . 4 1 Tactical Retreats 2 | . 2 . Traps | -11 -10 -10 ------- Run | Yrd Mat Min Traps Triggered 3 | . 3 . Indirectly . | . . . Trap Hack Attempts . | . . . Triggered . | . . . Disarmed . | . . . Reprogrammed . | . . . Reused . | . . . Traps Extracted . | . . . Installed . | . . . Triggered . | . . . Machines | -11 -10 -10 ---------- Run | Yrd Mat Min Machines Disabled 1 | . . 1 Max in Single Turn 1 | . . 1 Machines Repaired . | . . . Machines Dismantled . | . . . Machines Sabotaged . | . . . Overloaded Fab Kills . | . . . Hacking | -11 -10 -10 --------- Run | Yrd Mat Min Machines Accessed 9 | . 9 . Terminals 7 | . 7 . Fabricators . | . . . Repair Stations . | . . . Recycling Units 2 | . 2 . Scanalyzers . | . . . Garrison Access . | . . . Total Hacks 28 | . 28 . Successful 10 | . 10 . Failed 18 | . 18 . Catastrophic 2 | . 2 . Database Lockouts . | . . . Manual . | . . . Terminals 24 | . 24 . Fabricators . | . . . Repair Stations . | . . . Recycling Units 4 | . 4 . Scanalyzers . | . . . Garrison Access . | . . . Terminal Hacks 7 | . 7 . Prototype ID Bank 1 | . 1 . Branch Access Points 1 | . 1 . Alert Level 1 | . 1 . Locate Traps 2 | . 2 . Investigation Status 1 | . 1 . Hauler Manifests 1 | . 1 . Fabricator Hacks . | . . . Repair Station Hacks . | . . . Recycling Unit Hacks 3 | . 3 . Process 1 | . 1 . Report Inventory 2 | . 2 . Scanalyzer . | . . . Garrison Access Hacks . | . . . Unauthorized Hacks . | . . . Terminals . | . . . Fabricators . | . . . Repair Stations . | . . . Recycling Units . | . . . Scanalyzers . | . . . Garrison Access . | . . . Data Cores Recovered . | . . . Used . | . . . Hacking Detections 6 | . 6 . Full Trace Events 3 | . 3 . Feedback Events . | . . . Feedback Blocked . | . . . Robot Schematics Acquired . | . . . Robots Built . | . . . Authchips . | . . . Time . | . . . Total Robot Build Rating . | . . . Part Schematics Acquired . | . . . Parts Built . | . . . Authchips . | . . . Time . | . . . Total Part Build Rating . | . . . Parts Repaired . | . . . Time . | . . . Parts Recycled . | . . . Recycled Matter 196 | . 196 . Retrieved Matter . | . . . Retrieved Components . | . . . Parts Scanalyzed . | . . . Part Schematics Acquired . | . . . Parts Damaged . | . . . Bothacking | -11 -10 -10 ------------ Run | Yrd Mat Min Used RIF Installer . | . . . Robots Hacked . | . . . Non-combat . | . . . Combat . | . . . Robot Hacks Applied . | . . . Relay Couplers Released . | . . . Fabnet Peak Effective % . | . . . Robots Rewired . | . . . Allies Hacked . | . . . Hacks Repelled . | . . . Allies | -11 -10 -10 -------- Run | Yrd Mat Min Total Allies . | . . . Largest Group . | . . . Highest-Rated Group . | . . . Highest-Rated Ally . | . . . Total Orders . | . . . Ally Attacks . | . . . Total Damage . | . . . Kills . | . . . Allies Corrupted . | . . . Allies Melted . | . . . Intel | -11 -10 -10 ------- Run | Yrd Mat Min Robot Analysis Total . | . . . Derelict Logs Recovered . | . . . Drone Launches . | . . . Drone Recoveries . | . . . Exploration | -11 -10 -10 ------------- Run | Yrd Mat Min Turns Passed 1423 | 72 1341 10 Spaces Moved 790 | 53 737 . Core 3 | 3 . . Treads 130 | . 130 . Legs . | . . . Wheels 657 | 50 607 . Hover . | . . . Flight . | . . . Fastest Speed 50 | 50 80 . Average Speed 127 | 78 130 . Slowest Speed 320 | 80 320 . Overloaded Moves . | . . . Propulsion Burnouts . | . . . Robots Hopped . | . . . Cave-ins Triggered . | . . . Exploration Rate (%) 32 | 4 89 3 Regions Visited 2 Branch Regions 1 Pre-discovered Areas . | . . . Known Exits Taken 1 | . 1 . Unknown Exits Taken 1 | 1 . . Scrap Searched . | . . . Spaces Dug . | . . . Terrain Destroyed 89 | . 85 4 Melee . | . . . Projectile . | . . . AOE 89 | . 85 4 Terrain Rammed . | . . . Walls Destroyed . | . . . Machines Disabled . | . . . Actions | -11 -10 -10 --------- Run | Yrd Mat Min Total 1065 | 70 990 5 Wait 91 | . 91 . Move 788 | 52 736 . Hop . | . . . Pick Up 33 | 7 26 . Fast Attach 6 | 6 . . Attach 7 | . 7 . Detach . | . . . Swap 16 | . 16 . Drop 21 | . 21 . Fire 102 | 5 92 5 Melee . | . . . Ram 1 | . 1 . Kick . | . . . Crush . | . . . Escape Stasis . | . . . Rewire . | . . . Trap . | . . . Miscellaneous . | . . . Route ------- -11/Scrapyard -10/Materials (discovered 4 exits: [*Mat x3] / *Min) -10/Mines History --------- Turn | Location | Event 25 | -11/Scrapyard | Discovered new exit (range 16) 73 | -11/Scrapyard | Entered Materials 186 | -10/Materials | Discovered new exit (range 6) 304 | -10/Materials | Build established: Mutant 390 | -10/Materials | Discovered new exit (range 14) 608 | -10/Materials | Discovered new exit (range 11) 795 | -10/Materials | Lost 3 parts (1p1n1w) 1052 | -10/Materials | Identified exit to Mines 1087 | -10/Materials | Core integrity fell below 50% 1237 | -10/Materials | Discovered new exit (range 16) 1316 | -10/Materials | Core integrity fell below 20% 1414 | -10/Materials | Entered Mines 1424 | -10/Mines | Destroyed by G-34 Mercenary with Small Laser Last Messages --------------- 01300_ R-06 Scavenger collects Sml. Matter Pod. 01309_ R-06 Scavenger collects Heat Sink. 01312_ R-06 Scavenger collects Sml. Laser. 01322_ K-01 Serf destroyed. 01328_ U-05 Engineer builds a Wall. 01330_ G-34 Mercenary destroyed. 01331_ U-05 Engineer lays Concrete. 01332_ The unstable cave ceiling collapses. 01332_ U-05 Engineer builds a Wall. 01332_ U-05 Engineer lays Concrete. 01338_ The unstable cave ceiling collapses. 01338_ U-05 Engineer lays Concrete. 01338_ U-05 Engineer builds a Wall. 01343_ U-05 Engineer lays Concrete. 01358_ Acquired 12 matter. LOCATION=MINES GOAL=ESCAPE Something is scanning the area. 01414_ G-47 Trooper destroyed. 01414_ Seismic Survey Station disabled. Map ----- +----------------------------------------------------+ | | | | | | | | | | | | | | | | | | | | | | | ?????????????????????????????? | | ?????????????????????????????? | | ?????????????????????????????? | | ?????????????????????????????? | | ?????????????????????????????? | | ?????????????????????????????? | | ?????????????????????????????? | | ?????????????????????????????? | | ?????????????????????????????? | | ?????????????????????????????? | | ?????????????????????????????? | | ??########???????????????????? | | ??# #???????????????????? | | ??# #???????????????????? | | ??# @ #???????????????????? | | ?# #???????????????????? | | ?# [ g #???????????????????? | | ?# %= #???????????????????? | | ?# = " #???????????????????? | | ?## " #???????????????????? | | ??# "" #???????????????????? | | ??# #???????????????????? | | ??# #???????????????????? | | ??### ####???????????????????? | | ????? ???????????????????????? | | ?????#???????????????????????? | | ?????????????????????????????? | | ?????????????????????????????? | | ?????????????????????????????? | | ?????????????????????????????? | | ?????????????????????????????? | | ?????????????????????????????? | | ?????????????????????????????? | | ?????????????????????????????? | | ?????????????????????????????? | | ?????????????????????????????? | | ?????????????????????????????? | | ?????????????????????????????? | | ?????????????????????????????? | +----------------------------------------------------+ Best States ------------- Heat Dissipation 25 Energy Generation 10 Energy Capacity 250 Matter Stores 300 Matter Capacity 300 Sight Range 16 Terrain Scan Density 10 ECM Strength 1 Evasion (%) 44 Recoil Reduction 2 Item Schematics ----------------- None Robot Schematics ------------------ None Fabricated ------------ Nothing Alien Tech Used ----------------- None Achievements -------------- None Challenges ------------ None Game ------ Seed PoweredGreatDissipator Manual? 0 Play Time 00:25:45 Cumulative 13.0 hours Start 2025.05.04 @ 17:16:26 End 2025.05.05 @ 20:56:00 Sessions 3 Manual Loads 0 Difficulty Rogue Special Mode None Game No. 9 Rogue 9 Adventurer 0 Explorer 0 Win Type - Total 0 Types 0/0/0/0/0/0/0/0/0 Lore% 9 Gallery% 16 Achievement% 16 Wizard Run 0 Options --------- Layout 1 ASCII 0 Keyboard 0 Movement Numpad Keybinds 0 Fullscreen 1 Font 24/Smallcaps Map View 50x35 Zoom Use 0% Tactical HUD 1 Map Filters NONE Filters NONE Steam 1 RUN: 7f4872f5-d09e-436d-a0c5-349b8465d109